[Event "44th Chess Olympiad Open 2022"]
[Site "Chennai"]
[Date "2022.08.01"]
[Round "4.62"]
[White "Antoniou, Rafail"]
[Black "seder mohamad"]
[Result "1-0"]
[WhiteElo "1817"]
[BlackElo "1950"]
[Annotator "NA RC"]
[PlyCount "119"]
[EventDate "2022.??.??"]
[TimeControl "60"]

1. e4 {[%emt 0:00:13]} e6 {[%emt 0:00:12]} 2. d4 {[%emt 0:00:33]} d5 {[%emt 0:
00:00]} 3. Nc3 {[%emt 0:00:49]} Bb4 {[%emt 0:00:14]} 4. exd5 {[%emt 0:00:16]}
exd5 {[%emt 0:00:07]} 5. Bd3 {[%emt 0:01:37]} Nf6 {[%emt 0:00:36]} 6. Nge2 {
[%emt 0:01:18]} O-O {[%emt 0:03:07]} 7. O-O {[%emt 0:01:17]} Nbd7 {[%emt 0:00:
00]} 8. a3 {[%emt 0:03:34]} Bd6 {[%emt 0:07:39]} 9. Ng3 {[%emt 0:03:44]} Re8 {
[%emt 0:05:43]} 10. Nce2 {[%emt 0:06:01]} Ne4 {[%emt 0:06:00]} 11. Bf4 {
[%emt 0:04:12]} Ndf6 {[%emt 0:03:40]} 12. Qc1 {[%emt 0:06:58]} b6 {[%emt 0:00:
00]} 13. f3 {[%emt 0:07:06]} Nxg3 {[%emt 0:00:59]} 14. Nxg3 {[%emt 0:01:35]} c5
{[%emt 0:02:56]} 15. c3 {[%emt 0:02:59]} Qc7 {[%emt 0:06:33]} 16. Bxd6 {
[%emt 0:02:12]} Qxd6 {[%emt 0:02:17]} 17. Qg5 {[%emt 0:08:34]} h6 {[%emt 0:00:
00]} 18. Qd2 {[%emt 0:01:15]} Bd7 {[%emt 0:07:12]} 19. Rfe1 {[%emt 0:02:41]}
Rac8 {[%emt 0:05:45]} 20. Rad1 {[%emt 0:13:59]} h5 {[%emt 0:02:57]} 21. Qg5 {
[%emt 0:01:15]} cxd4 {[%emt 0:10:06]} 22. cxd4 {[%emt 0:01:51]} b5 {[%emt 0:00:
00]} 23. Nxh5 {[%emt 0:05:18]} Nxh5 {[%emt 0:00:04]} 24. Qxh5 {[%emt 0:00:03]}
g6 {[%emt 0:00:09]} 25. Qg5 {[%emt 0:00:45]} b4 {[%emt 0:01:37]} 26. Rxe8+ {
[%emt 0:02:49]} Rxe8 {[%emt 0:03:05]} 27. axb4 {[%emt 0:02:26]} Qxb4 {[%emt 0:
00:00]} 28. Qxd5 {[%emt 0:00:55]} Be6 {[%emt 0:00:34]} 29. Qc5 {[%emt 0:01:13]}
Qxb2 {[%emt 0:00:42]} 30. Qxa7 {[%emt 0:00:43]} Bf5 {[%emt 0:04:30]} 31. Bxf5 {
[%emt 0:01:24]} Qb3 {[%emt 0:01:37]} 32. Qa1 {[%emt 0:03:56]} gxf5 {[%emt 0:00:
00]} 33. Re1 {[%emt 0:01:07]} Rd8 {[%emt 0:01:58]} 34. Qa5 {[%emt 0:00:42]} Rd5
{[%emt 0:00:48]} 35. Qd2 {[%emt 0:01:23]} Qa4 {[%emt 0:01:02]} 36. Rd1 {
[%emt 0:01:19]} f4 {[%emt 0:00:37]} 37. Kf1 {[%emt 0:02:30]} Qc4+ {[%emt 0:00:
00]} 38. Kf2 {[%emt 0:01:31]} Qa4 {[%emt 0:01:22]} 39. Kg1 {[%emt 0:01:07]} Kg7
{[%emt 0:00:32]} 40. Qe2 {[%emt 0:02:30]} Qd7 {[%emt 0:01:07]} 41. Qe4 {
[%emt 0:31:24]} Qa4 {[%emt 0:31:35]} 42. Rd2 {[%emt 0:02:37]} Qa1+ {[%emt 0:00:
00]} 43. Kf2 {[%emt 0:00:00]} Qc1 {[%emt 0:00:00]} 44. Qxf4 {[%emt 0:00:00]} f6
{[%emt 0:00:00]} 45. Qe3 {[%emt 0:00:00]} Rg5 {[%emt 0:00:00]} 46. Re2 {
[%emt 0:00:00]} Qh1 {[%emt 0:00:00]} 47. Qe7+ {[%emt 0:00:00]} Kg6 {[%emt 0:00:
00]} 48. Qe4+ {[%emt 0:00:00]} Kg7 {[%emt 0:00:00]} 49. f4 {[%emt 0:00:00]} Ra5
{[%emt 0:00:00]} 50. Qe7+ {[%emt 0:00:00]} Kg6 {[%emt 0:00:00]} 51. Qe8+ {
[%emt 0:00:00]} Kh6 {[%emt 0:00:00]} 52. Qh8+ {[%emt 0:00:00]} Kg6 {[%emt 0:00:
00]} 53. Qg8+ {[%emt 0:00:00]} Kh6 {[%emt 0:00:00]} 54. Re7 {[%emt 0:00:00]}
Ra2+ {[%emt 0:00:00]} 55. Qxa2 {[%emt 0:00:00]} Qxh2 {[%emt 0:00:00]} 56. Qd2 {
[%emt 0:00:00]} f5 {[%emt 0:00:00]} 57. Re6+ {[%emt 0:00:00]} Kg7 {[%emt 0:00:
00]} 58. Qe3 {[%emt 0:00:00]} Qh5 {[%emt 0:00:33]} 59. Qe5+ {[%emt 0:00:00]}
Kg8 {[%emt 0:01:00]} 60. Re8+ {[%emt 0:00:00]} 1-0

[Event "44th Chess Olympiad Open 2022"]
[Site "Chennai"]
[Date "2022.08.01"]
[Round "4.62"]
[White "Shawabke Ziyad"]
[Black "Michaelides, Konstantinos"]
[Result "0-1"]
[WhiteElo "1786"]
[BlackElo "2300"]
[Annotator "TA"]
[PlyCount "70"]
[EventDate "2022.??.??"]
[TimeControl "60"]

{[%evp 12,70,34,30,43,23,44,39,47,46,52,22,20,18,25,0,0,0,0,0,0,0,0,-27,-20,
-14,-25,-42,-30,-25,-32,-34,-31,-35,-27,-34,-32,-188,-183,-195,-190,-178,-175,
-252,-247,-662,-652,-638,-637,-593,-617,-698,-664,-2450,-322,-2539,-2422,-1945,
-1843,-29998,-29999]} 1. Nf3 {[%emt 0:00:10]} Nf6 {[%emt 0:00:13]} 2. c4 {
[%emt 0:00:06]} e6 {[%emt 0:00:40]} 3. Nc3 {[%emt 0:00:12]} Bb4 {[%emt 0:01:05]
} 4. g3 {[%emt 0:02:12]} Bxc3 {[%emt 0:03:52]} 5. bxc3 {[%emt 0:00:21]} b6 {
[%emt 0:01:06]} 6. Bg2 {[%emt 0:01:02]} Bb7 {[%emt 0:00:02]} 7. O-O {[%emt 0:
00:00]} d6 {[%emt 0:04:01] A17: English Opening: 1...Nf6 with ...Bb4.} 8. a4 {
[%emt 0:01:02]} a5 {[%emt 0:01:36]} 9. d3 {[%emt 0:00:37]} O-O {[%emt 0:02:26]
White is slightly better.} 10. e4 {[%emt 0:02:51]} Nbd7 {[%emt 0:08:37] [#]}
11. h3 $146 {[%emt 0:00:44]} ({Predecessor:} 11. Nd4 Nc5 12. Bg5 h6 13. Be3
Nfd7 14. f4 Qe7 15. Re1 Qf6 16. Ra2 Rae8 17. Rf2 Qd8 {1-0 (63) Ivanov,M (2428)
-Denisov,I (2300) Ostrava 2011}) 11... Nc5 {[%emt 0:06:00]} 12. Nd4 {[%emt 0:
00:00]} Nfd7 {[%emt 0:05:42]} 13. f4 {[%emt 0:03:52] Prevents Ne5.} f5 {
[%emt 0:05:41]} 14. exf5 {[%emt 0:01:42] aiming for Bxb7.} Bxg2 {[%emt 0:00:16]
} 15. Kxg2 {[%emt 0:00:03]} exf5 {[%emt 0:00:50]} 16. Qf3 {[%emt 0:04:48]} Qf6
{[%emt 0:03:35]} 17. Bd2 {[%emt 0:15:30]} Qf7 {[%emt 0:07:50]} 18. g4 {[%emt 0:
00:00]} g6 {[%emt 0:09:56]} 19. g5 {[%emt 0:03:43]} h5 {[%emt 0:01:20]} 20. Be1
{[%emt 0:02:36]} Rfe8 {[%emt 0:05:01]} 21. Bf2 {[%emt 0:00:25]} Nf8 {[%emt 0:
00:00]} 22. h4 {[%emt 0:08:07]} Qd7 {[%emt 0:09:03]} 23. Nb5 {[%emt 0:06:48]}
Nfe6 {[%emt 0:03:43][%cal Yc5d3] Threatens to win with ...Nxd3!} 24. Rfe1 $2 {
[%emt 0:02:46] [#] This costs White the game.} ({White should try} 24. Kg3 $15)
24... Nxd3 $1 $19 {[%emt 0:06:13]} 25. Rxe6 {[%emt 0:00:15]} Nxf4+ {[%emt 0:00:
09]} ({Weaker is} 25... Qxe6 26. Qxd3 Rac8 27. Qd5 $11) 26. Qxf4 {[%emt 0:00:
03]} Rxe6 {[%emt 0:00:10]} 27. Qd2 {[%emt 0:09:52]} (27. Qf3 $142 Re4 28. Re1)
27... Rae8 {[%emt 0:01:57]} 28. Re1 $2 {[%emt 0:01:32]} (28. Qd3) 28... Qc6+ {
[%emt 0:01:30]} 29. Kg1 {[%emt 0:02:55]} Rxe1+ {[%emt 0:02:15]} 30. Bxe1 {
[%emt 0:00:03]} Qxc4 {[%emt 0:00:39]} 31. Bf2 {[%emt 0:04:11]} Qg4+ {[%emt 0:
03:19]} 32. Kf1 {[%emt 0:00:06]} Qh3+ {[%emt 0:00:38]} 33. Kg1 {[%emt 0:00:18]}
Re4 {[%emt 0:00:56]} 34. Qd5+ {[%emt 0:12:42]} Kf8 {[%emt 0:00:00] ( -> ...
Rg4+)} 35. Bxb6 {[%emt 0:02:13]} Qg3+ {[%emt 0:00:40] Weighted Error Value:
White=0.73/Black=0.04 (flawless)} ({Not} 35... cxb6 36. Qxd6+ Kg7 37. Qf6+ Kg8
38. Qd8+ Kh7 39. Qd7+ Kh8 40. Qd8+ Kh7 41. Qd7+ Kh8 42. Qd8+ Kg7 43. Qf6+ Kh7
44. Qf7+ Kh8 45. Qf8+ Kh7 46. Qf7+ Kh8 47. Qf8+ Kh7 48. Qf7+ $11) 0-1

[Event "44th Chess Olympiad Open 2022"]
[Site "Chennai"]
[Date "2022.08.01"]
[Round "4.63"]
[White "Othman, A. Moussa"]
[Black "Paiva, Donaldo"]
[Result "1/2-1/2"]
[WhiteElo "2229"]
[BlackElo "2191"]
[Annotator "TA"]
[PlyCount "205"]
[EventDate "2022.??.??"]
[TimeControl "60"]

{[%evp 19,205,6,6,-3,-6,-6,0,-5,-5,-6,0,-4,-3,-9,-7,-7,0,-2,0,0,0,0,0,-1,-2,0,
-5,-5,-5,-5,1,0,7,7,9,8,12,0,7,0,0,0,0,0,0,0,0,0,0,0,4,12,29,10,44,44,52,44,62,
62,62,62,62,62,62,62,62,62,62,55,62,62,62,62,62,54,62,62,62,62,62,62,62,62,62,
62,68,0,62,62,62,62,62,62,62,62,62,62,62,62,62,62,62,62,62,62,62,62,62,62,62,
62,62,0,62,0,0,4,4,4,94,94,94,94,94,94,94,94,94,94,94,94,94,94,94,94,94,94,94,
94,94,94,94,94,94,94,94,94,94,94,94,94,94,94,94,0,94,0,94,94,94,94,102,0,0,0,0,
0,0,0,0,0,0,0,0,0,0,0,0,0,0,0,0,0,0,0,0,0]} 1. d4 {[%emt 0:00:03]} Nf6 {
[%emt 0:00:31]} 2. c4 {[%emt 0:00:08]} e6 {[%emt 0:00:04]} 3. Nf3 {[%emt 0:00:
00]} d5 {[%emt 0:00:05]} 4. Nbd2 {[%emt 0:00:44]} Be7 {[%emt 0:00:28]} 5. g3 {
[%emt 0:00:20]} O-O {[%emt 0:03:38]} 6. Bg2 {[%emt 0:00:05]} Nbd7 {[%emt 0:00:
00]} 7. O-O {[%emt 0:00:32]} c6 {[%emt 0:01:08]} 8. b3 {[%emt 0:01:00]} b6 {
[%emt 0:00:05]} 9. Bb2 {[%emt 0:01:48]} Bb7 {[%emt 0:00:34]} 10. Rc1 {[%emt 0:
00:00]} Rc8 {[%emt 0:00:55]} 11. cxd5 {[%emt 0:08:08] E07: Closed Catalan:
Main Line (5 Nf3 0-0 6 0-0 Nbd7).} (11. e3 {seems wilder.} dxc4 12. Nxc4 c5 13.
Qe2) 11... cxd5 {[%emt 0:00:18]} 12. Rxc8 {[%emt 0:01:23]} Qxc8 {[%emt 0:00:07]
} 13. Qb1 {[%emt 0:00:30] [#]} Ba6 $146 {[%emt 0:01:36]} ({Predecessor:} 13...
Qb8 14. Rc1 h6 15. Ne1 Rc8 16. Nd3 Rxc1+ 17. Qxc1 Bd6 18. e3 Ne4 19. Qc2 Nxd2
20. Qxd2 Qc7 21. Qc3 Qxc3 {½-½ (21) Malakhatko,V (2442)-Dgebuadze,A (2488)
Bruges 2021}) 14. Rc1 {[%emt 0:00:47]} Qb7 {[%emt 0:00:04]} 15. e3 {[%emt 0:00:
00]} Rc8 {[%emt 0:00:06]} 16. Rc2 {[%emt 0:07:35]} (16. Ne5 {is interesting.}
Bb5 17. Ndf3 h6 18. Rc2) 16... h6 {[%emt 0:02:18]} (16... Bb5 {keeps more
tension.} 17. Ne1 h6 18. e4 Nxe4 19. Nxe4 dxe4 20. Bxe4 Qb8) 17. Qc1 {[%emt 0:
00:00]} Rxc2 {[%emt 0:00:08]} 18. Qxc2 {[%emt 0:00:03]} Qc8 {[%emt 0:00:11]}
19. Qxc8+ {[%emt 0:00:19]} Bxc8 {[%emt 0:00:07]} 20. Bf1 {[%emt 0:00:06]} Nb8 {
[%emt 0:00:19]} 21. Bd3 {[%emt 0:16:30]} Ba6 {[%emt 0:00:34]} 22. Bxa6 {
[%emt 0:03:58]} Nxa6 {[%emt 0:00:13]} 23. Ne5 {[%emt 0:00:49]} Nb8 {[%emt 0:00:
00] Against Nc6} 24. f3 {[%emt 0:02:08]} Bb4 {[%emt 0:00:19]} 25. Nb1 {[%emt 0:
00:00]} Nfd7 {[%emt 0:00:08]} 26. Nd3 {[%emt 0:03:47]} Be7 {[%emt 0:01:05]} 27.
Kf2 {[%emt 0:03:15]} Nc6 {[%emt 0:00:10]} 28. Ba3 {[%emt 0:02:05]} Kf8 {
[%emt 0:00:14]} 29. Ke2 {[%emt 0:00:15]} a6 {[%emt 0:02:23]} 30. Kd2 {[%emt 0:
00:00]} Bxa3 {[%emt 0:00:33]} 31. Nxa3 $11 {[%emt 0:00:02] Endgame KNN-KNN} Ke7
{[%emt 0:00:09]} 32. Kc3 {[%emt 0:02:53]} Kd6 {[%emt 0:02:11]} 33. b4 {[%emt 0:
09:49]} Na7 {[%emt 0:00:16]} 34. e4 {[%emt 0:11:52]} Kc6 {[%emt 0:00:00]} 35.
e5 {[%emt 0:06:29]} Nb8 {[%emt 0:11:25]} 36. Nc2 {[%emt 0:01:26]} Kd7 {[%emt 0:
06:54]} 37. a4 {[%emt 0:00:53]} Nbc6 {[%emt 0:00:06]} 38. f4 {[%emt 0:03:19]}
a5 {[%emt 0:01:15]} 39. b5 {[%emt 0:00:32]} Ne7 {[%emt 0:00:21]} 40. Ne3 {
[%emt 0:00:10][%cal Yf4f5]} Nf5 {[%emt 0:01:37]} 41. Nxf5 {[%emt 0:00:00]} exf5
$14 {[%emt 0:00:17] KN-KN} 42. Ne1 {[%emt 0:02:37]} Nc8 {[%emt 0:00:00]} 43.
Nc2 {[%emt 0:02:09]} Ne7 {[%emt 0:00:09]} 44. Kd3 {[%emt 0:01:46]} Ng6 {
[%emt 0:03:22]} 45. Ne3 {[%emt 0:00:55]} Ke6 {[%emt 0:00:08]} 46. Ke2 {[%emt 0:
00:56]} Ne7 {[%emt 0:01:42]} 47. Nc2 {[%emt 0:08:30]} Ng6 {[%emt 0:00:00]} 48.
Kf3 {[%emt 0:00:45]} Ne7 {[%emt 0:00:17]} 49. h3 {[%emt 0:00:25]} h5 {[%emt 0:
00:09]} 50. Ne3 {[%emt 0:01:32]} Ng8 {[%emt 0:00:54]} 51. Ng2 {[%emt 0:00:00]}
Ne7 {[%emt 0:00:50]} 52. Ne1 {[%emt 0:00:28]} Ng6 {[%emt 0:00:45]} 53. Ng2 {
[%emt 0:00:10]} Ne7 $1 {[%emt 0:00:15]} 54. Kf2 {[%emt 0:00:08]} Ng6 {[%emt 0:
00:12]} 55. Ke3 {[%emt 0:00:00]} Ne7 {[%emt 0:00:05]} 56. Ne1 {[%emt 0:00:00]}
Ng6 {[%emt 0:00:13]} 57. Nf3 {[%emt 0:00:01]} Ke7 {[%emt 0:01:55]} 58. Ng1 {
[%emt 0:04:53]} Ke6 {[%emt 0:01:15]} 59. Kf3 {[%emt 0:00:29]} Ne7 {[%emt 0:00:
52]} 60. Ne2 {[%emt 0:00:02]} Ng8 {[%emt 0:03:33]} 61. Nc3 {[%emt 0:00:00]} Ne7
{[%emt 0:00:24]} 62. Nd1 {[%emt 0:00:11]} Ng8 {[%emt 0:02:34]} 63. Ne3 {
[%emt 0:01:39]} Nh6 {[%emt 0:03:11]} 64. Kf2 {[%emt 0:00:22]} Ng8 {[%emt 0:00:
31]} 65. Ke2 {[%emt 0:00:43]} Nh6 {[%emt 0:00:14]} 66. Kf2 {[%emt 0:00:00]} Ng8
$1 {[%emt 0:05:23]} 67. g4 {[%emt 0:00:01]} ({Better is} 67. Nf1 $14) 67...
hxg4 $11 {[%emt 0:00:11]} 68. hxg4 {[%emt 0:00:01]} Nh6 {[%emt 0:00:00]} 69. g5
{[%emt 0:01:49]} Ng8 {[%emt 0:03:17]} (69... Ng4+ $11 {keeps the balance.} 70.
Kf3 Nxe3 71. Kxe3 Ke7) 70. Kf3 {[%emt 0:00:13]} Ne7 {[%emt 0:00:00]} 71. Nc2 {
[%emt 0:00:17]} g6 {[%emt 0:01:17]} 72. Ne1 {[%emt 0:00:12]} Nc8 {[%emt 0:02:
20]} 73. Ke3 {[%emt 0:00:29]} Ne7 {[%emt 0:00:08]} 74. Kd3 {[%emt 0:00:05]} Kd7
{[%emt 0:01:49]} 75. Kc3 {[%emt 0:00:17]} Kc7 {[%emt 0:00:00]} 76. Nd3 {
[%emt 0:00:33]} Kd7 {[%emt 0:00:04]} 77. Kb3 {[%emt 0:01:51]} Kc7 {[%emt 0:00:
54]} 78. Kc2 {[%emt 0:00:38]} Kd7 {[%emt 0:00:13]} 79. Kd2 {[%emt 0:00:02]} Kc7
{[%emt 0:00:05]} 80. Ke3 {[%emt 0:00:40]} Kd7 {[%emt 0:00:00]} 81. Nb2 {
[%emt 0:00:19]} Kc7 {[%emt 0:00:29]} 82. Nd1 {[%emt 0:00:04]} Kd7 {[%emt 0:00:
23]} 83. Kd3 {[%emt 0:01:03]} Kc7 {[%emt 0:00:15]} 84. Kc3 {[%emt 0:00:18]} Kd7
{[%emt 0:00:05]} 85. Ne3 {[%emt 0:00:13]} Kc7 {[%emt 0:00:00]} 86. Ng2 {
[%emt 0:01:00]} Kd7 {[%emt 0:02:11]} 87. Ne1 {[%emt 0:00:01]} Kc7 {[%emt 0:00:
09]} 88. Nd3 {[%emt 0:00:45]} Kd7 {[%emt 0:00:06]} 89. Nc1 {[%emt 0:01:05]} Kc7
{[%emt 0:00:35]} 90. Nb3 {[%emt 0:00:02]} Kd7 {[%emt 0:00:00]} 91. Nc5+ bxc5 {
[%emt 0:04:28] The position is equal.} 92. dxc5 {[%emt 0:00:00] KN-KP} Kc7 {
[%emt 0:00:12]} 93. Kd3 $1 {[%emt 0:00:11]} Kb7 {[%emt 0:00:00]} 94. Kc3 $1 {
[%emt 0:00:12]} Kc7 {[%emt 0:00:06]} 95. Kd3 $1 {[%emt 0:00:00]} Kb7 {[%emt 0:
00:10]} 96. Kd4 {[%emt 0:01:05]} Kc7 {[%emt 0:00:09][%cal Ye7c6] [#] Hoping
for ...Nc6+!} 97. Kd3 {[%emt 0:00:24]} Kb7 {[%emt 0:00:06]} 98. Ke3 {[%emt 0:
00:36]} Kc7 {[%emt 0:00:10]} 99. Kd3 $1 {[%emt 0:00:22]} Kb7 {[%emt 0:00:06]}
100. Kc3 {[%emt 0:00:11]} Kc7 {[%emt 0:00:07]} 101. Kd3 $1 {[%emt 0:00:35]} Kb7
{[%emt 0:00:06]} 102. Kc3 {[%emt 0:00:18]} Kc7 {[%emt 0:00:00]} 103. Kd3 $1 {
[%emt 0:00:25] Weighted Error Value: White=0.03 (flawless) / Black=0.02 
(flawless)} 1/2-1/2

[Event "44th Chess Olympiad Open 2022"]
[Site "Chennai"]
[Date "2022.08.01"]
[Round "4.63"]
[White "Sultan, Ibrahim"]
[Black "Napoleao, Lourenco"]
[Result "1-0"]
[WhiteElo "2108"]
[BlackElo "1778"]
[Annotator "NA RC"]
[PlyCount "106"]
[EventDate "2022.??.??"]
[TimeControl "60"]

1. d4 {[%emt 0:00:06]} d5 {[%emt 0:00:22]} 2. c4 {[%emt 0:00:08]} c6 {[%emt 0:
00:00]} 3. Nf3 {[%emt 0:00:07]} Nf6 {[%emt 0:00:05]} 4. Nbd2 {[%emt 0:00:24]}
a6 {[%emt 0:02:07]} 5. Qc2 {[%emt 0:02:21]} g6 {[%emt 0:01:49]} 6. g3 {[%emt 0:
00:00]} Bg7 {[%emt 0:00:31]} 7. Bg2 {[%emt 0:00:06]} O-O {[%emt 0:00:20]} 8.
O-O {[%emt 0:00:08]} a5 {[%emt 0:18:06]} 9. e4 {[%emt 0:21:46]} dxe4 {[%emt 0:
00:00]} 10. Nxe4 {[%emt 0:00:05]} a4 {[%emt 0:02:03]} 11. Nc3 {[%emt 0:01:40]}
Bf5 {[%emt 0:02:17]} 12. Qe2 {[%emt 0:00:21]} Bg4 {[%emt 0:04:30]} 13. Rd1 {
[%emt 0:01:39]} e6 {[%emt 0:01:02]} 14. a3 {[%emt 0:00:18]} Nbd7 {[%emt 0:00:
00]} 15. h3 {[%emt 0:02:48]} Bxf3 {[%emt 0:00:10]} 16. Bxf3 {[%emt 0:00:06]}
Re8 {[%emt 0:00:35]} 17. Bf4 {[%emt 0:00:41]} Qa5 {[%emt 0:01:15]} 18. Be3 {
[%emt 0:14:32]} Nb6 {[%emt 0:09:21]} 19. Rac1 {[%emt 0:01:30]} Rad8 {[%emt 0:
00:00]} 20. Kg2 {[%emt 0:04:13]} Rd7 {[%emt 0:00:50]} 21. g4 {[%emt 0:12:35]}
Red8 {[%emt 0:02:00]} 22. g5 {[%emt 0:00:10]} Ne8 {[%emt 0:00:17]} 23. c5 {
[%emt 0:05:13]} Nc8 {[%emt 0:01:04]} 24. Qc4 {[%emt 0:00:23]} b5 {[%emt 0:00:
00]} 25. cxb6 {[%emt 0:01:52]} Nxb6 {[%emt 0:01:30]} 26. Qxc6 {[%emt 0:00:16]}
Nc7 {[%emt 0:13:17]} 27. Rc2 {[%emt 0:09:24]} Ncd5 {[%emt 0:03:20]} 28. Qb5 {
[%emt 0:14:16]} Qa7 {[%emt 0:05:09]} 29. Ne4 {[%emt 0:00:00]} Nxe3+ {[%emt 0:
00:00]} 30. fxe3 {[%emt 0:00:00]} Nd5 {[%emt 0:00:26]} 31. Re1 {[%emt 0:00:00]}
Rb7 {[%emt 0:02:58]} 32. Qc5 {[%emt 0:00:00]} Qb8 {[%emt 0:00:08]} 33. Qa5 {
[%emt 0:00:39]} Rxb2 {[%emt 0:05:33]} 34. Qxa4 {[%emt 0:00:06]} Nxe3+ {[%emt 0:
00:00]} 35. Rxe3 {[%emt 0:00:21]} Rxd4 {[%emt 0:00:20]} 36. Qc6 {[%emt 0:00:30]
} Rd8 {[%emt 0:03:24]} 37. Ree2 {[%emt 0:00:35]} Rxc2 {[%emt 0:00:39]} 38. Rxc2
{[%emt 0:00:05]} Rf8 {[%emt 0:00:47]} 39. a4 {[%emt 0:01:03]} Qf4 {[%emt 0:00:
00]} 40. Rc4 {[%emt 0:01:34]} Kh8 {[%emt 0:00:30]} 41. Qd6 {[%emt 0:30:10]} Qf5
{[%emt 0:06:07]} 42. Rb4 {[%emt 0:00:00]} Rg8 {[%emt 0:05:20]} 43. Rb5 {
[%emt 0:00:00]} e5 {[%emt 0:00:41]} 44. Rb8 {[%emt 0:00:00]} Rc8 {[%emt 0:00:
00]} 45. Qc7 {[%emt 0:00:00]} Rg8 {[%emt 0:01:51]} 46. a5 {[%emt 0:00:00]} Qe6
{[%emt 0:01:38]} 47. Kg3 {[%emt 0:00:00]} h5 {[%emt 0:02:30]} 48. Rxg8+ {
[%emt 0:00:00]} Kxg8 {[%emt 0:00:01]} 49. Qb6 {[%emt 0:00:00]} Qa2 {[%emt 0:00:
00]} 50. h4 {[%emt 0:00:00]} f5 {[%emt 0:04:02]} 51. gxf6 {[%emt 0:00:00]} Bh6
{[%emt 0:00:34]} 52. Qd8+ {[%emt 0:00:00]} Kh7 {[%emt 0:00:37]} 53. Ng5+ {
[%emt 0:00:00]} Bxg5 {[%emt 0:01:01]} 1-0

[Event "44th Chess Olympiad Open 2022"]
[Site "Chennai"]
[Date "2022.08.01"]
[Round "4.63"]
[White "Vasco Mateus Felizardo Viagei"]
[Black "Al Hosani, Omran"]
[Result "1-0"]
[WhiteElo "1852"]
[BlackElo "2215"]
[Annotator "NA RC"]
[PlyCount "105"]
[EventDate "2022.??.??"]
[TimeControl "60"]

1. e4 {[%emt 0:00:07]} e5 {[%emt 0:00:13]} 2. Nf3 {[%emt 0:00:08]} Nc6 {
[%emt 0:00:14]} 3. Bb5 {[%emt 0:00:11]} a6 {[%emt 0:00:19]} 4. Ba4 {[%emt 0:00:
00]} Nf6 {[%emt 0:00:17]} 5. d3 {[%emt 0:00:46]} b5 {[%emt 0:00:29]} 6. Bb3 {
[%emt 0:00:05]} Be7 {[%emt 0:00:14]} 7. O-O {[%emt 0:00:07]} O-O {[%emt 0:00:
00]} 8. Re1 {[%emt 0:01:05]} Bb7 {[%emt 0:00:53]} 9. c3 {[%emt 0:00:18]} d5 {
[%emt 0:05:55]} 10. exd5 {[%emt 0:08:18]} Nxd5 {[%emt 0:00:19]} 11. Nxe5 {
[%emt 0:02:18]} Nxe5 {[%emt 0:00:05]} 12. Rxe5 {[%emt 0:00:06]} Qd6 {[%emt 0:
00:00]} 13. d4 {[%emt 0:00:32]} Bf6 {[%emt 0:00:20]} 14. Re1 {[%emt 0:00:19]}
Rae8 {[%emt 0:00:23]} 15. Bd2 {[%emt 0:08:13]} c5 {[%emt 0:24:32]} 16. dxc5 {
[%emt 0:00:24]} Qxc5 {[%emt 0:00:19]} 17. Na3 {[%emt 0:01:07]} Rd8 {[%emt 0:00:
00]} 18. Qg4 {[%emt 0:07:46]} Rd6 {[%emt 0:26:29]} 19. Nc2 {[%emt 0:06:39]} Bd8
{[%emt 0:01:56]} 20. Nd4 {[%emt 0:00:41]} Rg6 {[%emt 0:02:21]} 21. Qf3 {
[%emt 0:00:41]} Ba8 {[%emt 0:05:48]} 22. Re5 {[%emt 0:00:44]} Rd6 {[%emt 0:00:
00]} 23. Nf5 {[%emt 0:16:51]} Bf6 {[%emt 0:00:49]} 24. Nxd6 {[%emt 0:01:17]}
Bxe5 {[%emt 0:00:09]} 25. Ne4 {[%emt 0:00:06]} Qc7 {[%emt 0:00:58]} 26. Qh5 {
[%emt 0:01:06]} Nf4 {[%emt 0:03:15]} 27. Bxf4 {[%emt 0:00:15]} Bxf4 {[%emt 0:
00:00]} 28. Ng5 {[%emt 0:00:32]} h6 {[%emt 0:00:31]} 29. Nxf7 {[%emt 0:04:48]}
Rxf7 {[%emt 0:02:16]} 30. Re1 {[%emt 0:00:22]} g6 {[%emt 0:10:53]} 31. Qxg6+ {
[%emt 0:01:50]} Kf8 {[%emt 0:00:01]} 32. Bxf7 {[%emt 0:00:26]} Qxf7 {[%emt 0:
00:00]} 33. Qxa6 {[%emt 0:00:39]} Bd5 {[%emt 0:01:07]} 34. Qxb5 {[%emt 0:01:45]
} Bc7 {[%emt 0:02:22]} 35. Qc5+ {[%emt 0:01:48]} Kg8 {[%emt 0:00:24]} 36. c4 {
[%emt 0:00:17]} Ba8 {[%emt 0:02:26]} 37. Qe7 {[%emt 0:01:32]} Bc6 {[%emt 0:00:
00]} 38. Qe6 {[%emt 0:01:20]} Bd7 {[%emt 0:00:30]} 39. Qxh6 {[%emt 0:00:15]}
Bf4 {[%emt 0:00:13]} 40. Qb6 {[%emt 0:00:34]} Bg5 {[%emt 0:00:47]} 41. Qc5 {
[%emt 0:30:45]} Qg7 {[%emt 0:30:30]} 42. Qd5+ {[%emt 0:00:12]} Kh8 {[%emt 0:00:
00]} 43. c5 {[%emt 0:00:11]} Bf4 {[%emt 0:00:54]} 44. c6 {[%emt 0:00:21]} Qh6 {
[%emt 0:00:31]} 45. g3 {[%emt 0:00:09]} Bxg3 {[%emt 0:00:28]} 46. fxg3 {
[%emt 0:00:10]} Bxc6 {[%emt 0:00:05]} 47. Qd8+ {[%emt 0:00:06]} Kg7 {[%emt 0:
00:00]} 48. Re7+ {[%emt 0:00:05]} Kf6 {[%emt 0:00:12]} 49. Qd6+ {[%emt 0:00:52]
} Kg5 {[%emt 0:00:29]} 50. Re5+ {[%emt 0:00:08]} Kg4 {[%emt 0:00:16]} 51. Qxh6
{[%emt 0:00:06]} Bg2 {[%emt 0:00:04]} 52. Qf4+ {[%emt 0:00:07]} Kh3 {[%emt 0:
00:00]} 53. Qh4# {[%emt 0:00:05]} 1-0

[Event "44th Chess Olympiad Open 2022"]
[Site "Chennai"]
[Date "2022.08.01"]
[Round "4.63"]
[White "Jamal, Hamid Harmon Gulamo"]
[Black "Abdulrahman Mohammad, Al Taher"]
[Result "0-1"]
[WhiteElo "1617"]
[BlackElo "2029"]
[Annotator "NA RC"]
[PlyCount "64"]
[EventDate "2022.??.??"]
[TimeControl "60"]

1. e4 {[%emt 0:00:05]} c5 {[%emt 0:00:25]} 2. Nf3 {[%emt 0:00:07]} Nc6 {
[%emt 0:00:06]} 3. Bb5 {[%emt 0:00:06]} g6 {[%emt 0:00:24]} 4. Bxc6 {[%emt 0:
00:00]} dxc6 {[%emt 0:00:12]} 5. d3 {[%emt 0:00:17]} Bg7 {[%emt 0:01:06]} 6. h3
{[%emt 0:00:28]} Nf6 {[%emt 0:01:01]} 7. O-O {[%emt 0:00:22]} Nd7 {[%emt 0:00:
00]} 8. Nc3 {[%emt 0:01:38]} e5 {[%emt 0:00:36]} 9. Be3 {[%emt 0:01:13]} Qe7 {
[%emt 0:01:05]} 10. Qd2 {[%emt 0:00:35]} Nf8 {[%emt 0:01:48]} 11. Bh6 {[%emt 0:
00:00]} f6 {[%emt 0:01:21]} 12. Bxg7 {[%emt 0:00:35]} Qxg7 {[%emt 0:00:02]} 13.
Qe3 {[%emt 0:04:22]} Ne6 {[%emt 0:04:41]} 14. Nd2 {[%emt 0:00:28]} O-O {
[%emt 0:10:03]} 15. Ne2 {[%emt 0:00:56]} g5 {[%emt 0:05:59]} 16. Ng3 {[%emt 0:
00:00]} Qg6 {[%emt 0:09:10]} 17. Nf5 {[%emt 0:01:37]} Kh8 {[%emt 0:00:48]} 18.
c3 {[%emt 0:00:57]} Nf4 {[%emt 0:03:34]} 19. Ne7 {[%emt 0:04:15]} Qg7 {[%emt 0:
00:00]} 20. Nxc8 {[%emt 0:01:52]} Raxc8 {[%emt 0:00:08]} 21. Qxc5 {[%emt 0:00:
00]} g4 {[%emt 0:01:13]} 22. h4 {[%emt 0:01:14]} Ne2+ {[%emt 0:00:49]} 23. Kh1
{[%emt 0:03:24]} Qh6 {[%emt 0:00:10]} 24. g3 {[%emt 0:02:17]} Qxd2 {[%emt 0:00:
00]} 25. Rad1 {[%emt 0:04:57]} Qxb2 {[%emt 0:04:12]} 26. Rb1 {[%emt 0:00:25]}
Qxc3 {[%emt 0:05:19]} 27. Qe3 {[%emt 0:00:19]} Nd4 {[%emt 0:06:38]} 28. Rxb7 {
[%emt 0:00:24]} Kg8 {[%emt 0:01:07]} 29. Qh6 {[%emt 0:04:53]} Rf7 {[%emt 0:00:
00]} 30. Rfb1 {[%emt 0:00:42]} Qxd3 {[%emt 0:01:03]} 31. Rb8 {[%emt 0:04:46]}
Qf3+ {[%emt 0:02:17]} 32. Kg1 {[%emt 0:00:20]} Ne2+ {[%emt 0:00:09]} 0-1